bitfinex/quotes_BTCUSD_20241202
["timestamp","ask_amount","ask_price","bid_price","bid_amount"]
[1733157281951,0.11184521,96821.0,96820.0,0.13996346]
[1733157281952,0.10284521,96821.0,96820.0,0.13996346]
[1733157282194,0.10284521,96821.0,96820.0,0.14096346]
[1733157282400,0.11184521,96821.0,96820.0,0.14196346]
[1733157282817,0.10284521,96821.0,96820.0,0.14096346]
[1733157283027,0.00228511,96848.0,96830.0,0.0075]
[1733157283237,0.10284521,96843.0,96830.0,0.0075]
[1733157283494,0.00228495,96842.0,96830.0,0.0075]
[1733157283709,0.206,96866.0,96840.0,0.0075]
[1733157283710,0.10284521,96841.0,96840.0,0.0075]
[1733157285204,0.10384521,96841.0,96840.0,0.0075]
[1733157285611,0.10284521,96841.0,96840.0,0.0075]
[1733157285814,0.10284521,96841.0,96840.0,0.0125]
[1733157286044,0.10284521,96841.0,96840.0,0.0085]
[1733157286248,0.10284521,96841.0,96840.0,0.0075]
[1733157286454,0.10384521,96841.0,96840.0,0.0075]
[1733157286662,0.10384521,96841.0,96837.0,0.075]
[1733157286875,0.00228474,96840.0,96839.0,0.0075]
[1733157287083,0.10512995,96840.0,96839.0,0.0075]
[1733157287940,0.10512995,96840.0,96837.0,0.075]
[1733157287941,0.10284521,96840.0,96837.0,0.075]
[1733157288150,0.10513007,96839.0,96837.0,0.075]
[1733157288388,0.15,96837.0,96823.0,0.0785]
[1733157288868,0.10284521,96829.0,96823.0,0.0785]
[1733157289118,0.00228519,96828.0,96823.0,0.0785]
[1733157289371,0.1051304,96827.0,96823.0,0.0785]
[1733157290374,0.1051304,96827.0,96823.0,0.0795]
[1733157290671,0.10284521,96824.0,96823.0,0.001]
[1733157290820,0.10513055,96824.0,96823.0,0.001]
[1733157291546,0.10513055,96824.0,96820.0,0.00076346]
[1733157291788,0.10513056,96823.0,96820.0,0.00076346]
[1733157292257,0.10284521,96821.0,96820.0,0.00076346]
[1733157292468,0.10513076,96821.0,96820.0,0.00076346]
[1733157292941,0.29763076,96821.0,96820.0,0.00076346]
[1733157293152,0.30491068,96821.0,96820.0,0.00076346]
[1733157293634,0.68391068,96821.0,96820.0,0.00076346]
[1733157293865,0.76810651,96821.0,96820.0,0.00076346]
[1733157295034,0.77210651,96821.0,96820.0,0.00076346]
[1733157295867,0.76210651,96821.0,96820.0,0.00076346]
[1733157296096,0.77810651,96821.0,96820.0,0.00176346]
[1733157296331,0.70921544,96821.0,96820.0,0.00176346]
[1733157296538,0.69321544,96821.0,96820.0,0.00076346]
[1733157296743,0.12141068,96821.0,96820.0,0.00076346]
[1733157296919,0.12369634,96821.0,96820.0,0.00076346]
[1733157297150,0.11413087,96821.0,96820.0,0.00076346]
[1733157297773,0.69761066,96821.0,96820.0,0.00076346]
[1733157297960,0.73963143,96821.0,96820.0,0.00176346]
[1733157298433,0.70821834,96821.0,96820.0,0.00176346]
[1733157298652,0.48521834,96821.0,96820.0,0.00176346]
[1733157298911,0.12741191,96821.0,96820.0,0.00176346]
[1733157299117,0.12969759,96821.0,96820.0,0.00176346]
[1733157299325,0.32219759,96821.0,96820.0,0.00176346]
[1733157299531,0.31991316,96821.0,96820.0,0.00176346]
[1733157299953,0.35212106,96821.0,96820.0,0.00176346]
[1733157300994,0.72512106,96821.0,96820.0,0.00176346]
[1733157301192,0.74042979,96821.0,96820.0,0.00176346]
[1733157302208,0.3925,96819.0,96818.0,0.0017312]
[1733157302398,0.69322189,96819.0,96818.0,0.00182254]
[1733157302887,0.70792638,96819.0,96818.0,0.00182254]
[1733157303122,0.69322189,96819.0,96818.0,0.00182254]
[1733157303736,0.89979289,96819.0,96818.0,5.4e-07]
[1733157304396,0.549128,96792.0,96791.0,0.0008647]
[1733157304646,0.67684989,96792.0,96791.0,0.0008647]
[1733157304872,0.67684989,96792.0,96791.0,0.00104088]
[1733157305319,0.67684989,96792.0,96745.0,6e-05]
[1733157305320,0.20669,96763.0,96745.0,6e-05]
[1733157305532,0.20669,96763.0,96761.0,6e-07]
[1733157305533,0.30953521,96763.0,96761.0,6e-07]
[1733157305738,0.399194,96761.0,96758.0,5e-07]
[1733157305953,0.5655,96752.0,96751.0,3e-07]
[1733157306173,0.87505921,96752.0,96751.0,3e-07]
[1733157306372,0.98745862,96752.0,96751.0,3e-07]
[1733157306587,0.2055,96743.0,96742.0,4e-07]
[1733157306816,0.32020072,96743.0,96742.0,4e-07]
[1733157307030,0.32020072,96743.0,96698.0,0.01231929]
[1733157307031,0.379784,96719.0,96712.0,0.0019844]
[1733157307246,0.66514221,96713.0,96712.0,0.0019844]
[1733157307878,0.206861,96683.0,96682.0,0.0175]
[1733157308087,0.10284521,96683.0,96679.0,0.0491]
[1733157308293,0.10284521,96680.0,96679.0,0.0491]
[1733157308516,0.10513409,96680.0,96679.0,0.0491]
[1733157308721,0.1037318,96680.0,96679.0,0.0491]
[1733157309389,0.2862318,96680.0,96679.0,0.0491]
[1733157309584,0.206902,96664.0,96663.0,0.91363636]
[1733157309806,0.30974721,96664.0,96663.0,0.91363636]
[1733157310222,0.30974721,96664.0,96663.0,0.93113636]
[1733157310445,0.30974721,96664.0,96663.0,0.91363636]
[1733157311576,0.51524721,96664.0,96663.0,0.91363636]
[1733157311774,0.52324721,96664.0,96663.0,0.91363636]
[1733157312273,0.55168899,96664.0,96663.0,0.91363636]
[1733157312470,0.55268899,96664.0,96663.0,0.91363636]
[1733157312875,0.34718899,96664.0,96663.0,0.91363636]
[1733157313710,0.65552045,96664.0,96663.0,0.91363636]
[1733157313918,0.55182696,96664.0,96663.0,0.91363636]
[1733157314185,0.55082696,96664.0,96663.0,0.91363636]
[1733157314385,0.58692399,96664.0,96663.0,0.91363636]
[1733157314589,0.52324721,96664.0,96663.0,0.91363636]
[1733157315215,0.31774721,96664.0,96663.0,0.91363636]
[1733157315625,0.11084521,96664.0,96663.0,0.96063636]
[1733157316240,0.16559775,96664.0,96663.0,0.91363636]
[1733157316443,0.11084521,96664.0,96663.0,0.91363636]
[1733157316645,0.11313441,96664.0,96663.0,0.91363636]
[1733157316866,0.11013441,96664.0,96663.0,0.91363636]
[1733157317278,0.11313441,96664.0,96663.0,0.91363636]
[1733157317478,0.12541448,96664.0,96663.0,0.91363636]
[1733157317656,0.12741448,96664.0,96663.0,0.91450306]
[1733157317995,0.12541448,96664.0,96663.0,0.91450306]
[1733157318202,0.13041448,96664.0,96663.0,0.91450306]
[1733157319012,0.55558493,96664.0,96663.0,0.91450306]
[1733157319217,0.77629573,96664.0,96663.0,0.91450306]
[1733157320407,1.01294673,96664.0,96663.0,0.75381306]
[1733157320581,0.77629573,96664.0,96663.0,0.75381306]
[1733157320783,0.97733928,96664.0,96663.0,0.75381306]
[1733157321337,0.93423928,96664.0,96663.0,0.75381306]
[1733157321558,0.85922528,96664.0,96663.0,0.75381306]
[1733157321770,0.68362528,96664.0,96663.0,0.75381306]
[1733157322130,0.48362528,96664.0,96663.0,0.75381306]
[1733157322341,0.11084521,96664.0,96663.0,0.75381306]
[1733157322577,0.11084521,96664.0,96663.0,0.83151306]
[1733157322985,0.11084521,96664.0,96663.0,0.84901306]
[1733157323391,0.11313411,96664.0,96663.0,0.83151306]
[1733157323597,0.11084521,96664.0,96663.0,0.84901306]
[1733157323830,0.5439,96732.0,96681.0,0.0175]
[1733157323831,0.20703895,96683.0,96681.0,0.0175]
[1733157324032,0.00017695,96683.0,96682.0,0.0175]
[1733157324239,0.10302216,96683.0,96682.0,0.0175]
[1733157325049,0.10302216,96683.0,96679.0,0.0175]
[1733157325259,0.10302216,96683.0,96676.0,0.0175]
[1733157325260,0.3119966,96682.0,96676.0,0.0175]
[1733157325458,0.3119966,96682.0,96681.0,0.00857486]
[1733157325672,0.00217695,96683.0,96682.0,0.00857486]
[1733157325882,0.00017695,96683.0,96682.0,0.13907486]
[1733157326088,0.00217695,96683.0,96682.0,0.13907486]
[1733157326322,0.00617695,96683.0,96682.0,0.13907486]
[1733157326522,0.00617695,96683.0,96682.0,0.34593786]
[1733157326732,0.206781,96721.0,96703.0,0.00857486]
[1733157326947,0.206781,96721.0,96704.0,0.00857486]
[1733157326948,0.413621,96707.0,96704.0,0.00857486]
[1733157327157,0.30965921,96705.0,96687.0,0.00857486]
[1733157327356,0.10284521,96698.0,96685.0,0.00857486]
[1733157327578,0.206861,96683.0,96682.0,0.13309045]
[1733157327773,0.30970621,96683.0,96682.0,0.00059045]
[1733157328416,0.30970621,96683.0,96682.0,0.00916531]
[1733157328628,0.31070621,96683.0,96682.0,0.00059045]
[1733157328837,0.30970621,96683.0,96682.0,0.00059045]
[1733157329073,0.31870621,96683.0,96682.0,0.00059045]
[1733157329261,0.31870621,96683.0,96682.0,0.00916531]
[1733157329474,0.30970621,96683.0,96682.0,0.00916531]
[1733157329713,0.31470621,96683.0,96682.0,0.00916531]
[1733157329919,0.31470621,96683.0,96682.0,0.00059045]
[1733157330144,0.30970621,96683.0,96682.0,0.00059045]
[1733157330355,0.31070621,96683.0,96682.0,0.00059045]
[1733157331675,0.30970621,96683.0,96682.0,0.00916531]
[1733157331884,0.31370621,96683.0,96682.0,0.00916531]
[1733157332317,0.30970621,96683.0,96682.0,0.00916531]
[1733157332539,0.31170621,96683.0,96682.0,0.00916531]
[1733157333209,0.31170621,96683.0,96682.0,0.00059045]
[1733157333412,0.31270621,96683.0,96682.0,0.00059045]
[1733157333613,0.31270621,96683.0,96682.0,0.00916531]
[1733157335766,0.10584521,96683.0,96682.0,0.00916531]
[1733157335979,0.003,96683.0,96682.0,0.13156531]
[1733157336187,0.206843,96692.0,96691.0,0.00857486]
[1733157336401,0.51653121,96692.0,96689.0,0.00857486]
[1733157336634,0.206846,96690.0,96688.0,0.00857486]
[1733157336869,0.31198166,96689.0,96688.0,0.00857486]
[1733157337084,0.30969321,96689.0,96688.0,0.00857486]
[1733157337695,0.10284521,96689.0,96688.0,0.00857486]
[1733157338112,0.206853,96687.0,96685.0,0.00857486]
[1733157338317,0.10513371,96686.0,96685.0,0.00857486]
[1733157339391,0.10513371,96686.0,96682.0,0.12299045]
[1733157339392,0.413715,96685.0,96682.0,0.07629045]
[1733157339571,0.206861,96683.0,96682.0,0.08486531]
[1733157339826,0.30970621,96683.0,96682.0,0.08486531]
[1733157340053,0.206851,96688.0,96682.0,0.08486531]
[1733157340302,0.02872626,96747.0,96682.0,0.08486531]
[1733157340303,0.206844,96691.0,96688.0,0.00857486]
[1733157340530,0.00228844,96715.0,96695.0,0.00857486]
[1733157340735,0.10284521,96712.0,96703.0,0.00857486]
[1733157340940,0.206816,96704.0,96703.0,0.00857486]
[1733157341149,0.30966121,96704.0,96703.0,0.00857486]
[1733157342199,0.31366121,96704.0,96703.0,0.00857486]
[1733157342405,0.10384521,96704.0,96703.0,0.00857486]
[1733157344007,0.001,96704.0,96703.0,0.00857486]
[1733157344237,0.206788,96717.0,96716.0,0.00857486]
[1733157344518,0.30963321,96717.0,96716.0,0.00857486]
[1733157345270,0.10284521,96717.0,96716.0,0.00857486]
[1733157345544,0.11402315,96717.0,96716.0,0.00957486]
[1733157346270,0.11002315,96717.0,96716.0,0.00957486]
[1733157347159,0.00017794,96717.0,96716.0,0.00857486]
[1733157347446,0.00417794,96717.0,96716.0,0.00857486]
[1733157347632,0.00617794,96717.0,96716.0,0.00857486]
[1733157347834,0.00217794,96717.0,96716.0,0.00857486]
[1733157348032,0.00217794,96717.0,96716.0,0.01257486]
[1733157348233,0.00017794,96717.0,96716.0,0.01257486]
[1733157348637,0.00017794,96717.0,96716.0,0.01557486]
[1733157349043,0.00017794,96717.0,96716.0,0.00857486]
[1733157349247,0.00017794,96717.0,96716.0,0.01257486]
[1733157350109,0.20641932,96719.0,96716.0,0.01257486]
[1733157350299,0.001,96717.0,96716.0,0.01916531]
[1733157350530,0.10284521,96718.0,96716.0,0.01316531]
[1733157350753,0.206788,96717.0,96716.0,0.00916531]
[1733157350952,0.206788,96717.0,96716.0,0.01216531]
[1733157351157,0.206788,96717.0,96716.0,0.01416531]
[1733157351571,0.206788,96717.0,96716.0,0.01216531]
[1733157351777,0.206788,96717.0,96716.0,0.00916531]
[1733157351980,0.10284521,96718.0,96716.0,0.01416531]
[1733157352196,0.10284521,96718.0,96717.0,0.00857486]
[1733157353483,0.10458101,96718.0,96717.0,0.00857486]
[1733157354106,0.10458101,96718.0,96717.0,0.01057486]
[1733157354316,0.0017358,96718.0,96717.0,0.01057486]
[1733157354961,0.0017358,96718.0,96717.0,0.01257486]
[1733157355968,0.0017358,96718.0,96717.0,0.7145521]
[1733157356373,0.206709,96754.0,96753.0,0.00857486]
[1733157356600,0.30955421,96754.0,96753.0,0.00857486]
[1733157357761,0.30973211,96754.0,96753.0,0.00857486]
[1733157357999,0.023,96753.0,96733.0,0.00857486]
[1733157358317,0.206718,96750.0,96749.0,0.00857486]
[1733157358547,0.31185026,96750.0,96749.0,0.00857486]
[1733157358773,0.30956321,96750.0,96749.0,0.00857486]
[1733157359046,0.206722,96748.0,96736.0,0.00857486]
[1733157359277,0.206722,96748.0,96737.0,0.00857486]
[1733157359278,0.206743,96738.0,96737.0,0.00857486]
[1733157359510,0.30958821,96738.0,96737.0,0.00857486]
[1733157360712,0.30958821,96738.0,96737.0,0.01257486]
[1733157361606,0.30958821,96738.0,96737.0,0.01457486]
[1733157362337,0.30958821,96738.0,96737.0,0.01257486]
[1733157362752,0.31158821,96738.0,96737.0,0.01257486]
[1733157363554,0.10484521,96738.0,96737.0,0.01257486]
[1733157363788,0.002,96738.0,96737.0,0.00857486]
[1733157363979,0.31158821,96738.0,96737.0,0.00857486]
[1733157364189,0.206754,96733.0,96731.0,0.00857486]
[1733157364406,0.10513265,96732.0,96731.0,0.00857486]
[1733157364616,0.002,96738.0,96737.0,0.00857486]
[1733157364900,0.10484521,96738.0,96737.0,0.00857486]
[1733157365109,0.10284521,96738.0,96737.0,0.00857486]
[1733157365309,0.10284521,96738.0,96737.0,0.01057486]
[1733157365949,0.10284521,96738.0,96737.0,0.00857486]
[1733157366155,0.10284521,96738.0,96737.0,0.01144196]
[1733157367029,0.5439,96808.0,96737.0,0.01144196]
[1733157367030,0.19142514,96784.0,96753.0,0.00857486]
[1733157367250,0.10302311,96754.0,96753.0,0.00857486]
[1733157367711,0.0001779,96754.0,96753.0,0.00857486]
[1733157368546,0.0041779,96754.0,96753.0,0.00857486]
[1733157368911,0.0001779,96754.0,96753.0,0.00857486]
[1733157369332,0.0001779,96754.0,96745.0,0.0465]
[1733157369333,0.10530979,96754.0,96745.0,0.0465]
[1733157369606,0.206743,96738.0,96737.0,0.01144196]
[1733157369982,0.3118755,96738.0,96737.0,0.0008671]
[1733157370219,0.30958821,96738.0,96737.0,0.0008671]
[1733157371502,0.31758821,96738.0,96737.0,0.0018671]
[1733157371757,0.31917998,96738.0,96737.0,0.0008671]
[1733157372038,0.32717998,96738.0,96737.0,0.0018671]
[1733157372265,0.32317998,96738.0,96737.0,0.0008671]
[1733157372526,0.32817998,96738.0,96737.0,0.0008671]
[1733157372798,0.35117998,96738.0,96737.0,0.0008671]
[1733157373562,0.34158821,96738.0,96737.0,0.0008671]
[1733157373818,0.1524339,96738.0,96737.0,0.0018671]
[1733157374076,0.1547217,96738.0,96737.0,0.0018671]
[1733157374315,0.3047217,96738.0,96737.0,0.0018671]
[1733157374575,0.3024339,96738.0,96737.0,0.0011071]
[1733157375204,0.3016693,96738.0,96737.0,0.0011071]
[1733157375438,0.2786693,96738.0,96737.0,0.0011071]
[1733157375654,0.3354123,96738.0,96737.0,0.0011071]
[1733157376311,0.5084123,96738.0,96737.0,0.0011071]
[1733157376520,0.60144828,96738.0,96737.0,0.0011071]
[1733157376738,0.36978061,96738.0,96737.0,0.0011071]
[1733157376938,0.39469955,96738.0,96737.0,0.0011071]
[1733157377828,0.60144255,96738.0,96737.0,0.0011071]
[1733157378692,0.52374255,96738.0,96737.0,0.0011071]
[1733157379394,0.50074255,96738.0,96737.0,0.0011071]
[1733157379868,0.35074255,96738.0,96737.0,0.0011071]
[1733157380100,0.50074255,96738.0,96737.0,0.0011071]
[1733157380335,0.4854025,96738.0,96737.0,0.0011071]
[1733157380548,0.48890413,96738.0,96737.0,0.0011071]
[1733157380761,0.3235779,96738.0,96737.0,0.0011071]
[1733157381234,0.10725601,96738.0,96737.0,0.00968196]
[1733157381422,0.017,96738.0,96737.0,0.13468196]
[1733157382069,0.013,96738.0,96737.0,0.13468196]
[1733157382501,0.017,96738.0,96737.0,0.13468196]
[1733157382946,0.013,96738.0,96737.0,0.13468196]
[1733157383275,0.013,96738.0,96737.0,0.13768196]
[1733157383663,0.005,96738.0,96737.0,0.13668196]
[1733157383863,0.006,96738.0,96737.0,0.14168196]
[1733157384485,0.006,96738.0,96737.0,0.14275783]
[1733157384918,0.006,96738.0,96737.0,0.54275783]
[1733157385150,0.006,96738.0,96737.0,0.54168196]
[1733157385409,0.0001779,96754.0,96753.0,0.08537486]
[1733157385625,0.0001779,96754.0,96753.0,0.13097486]
[1733157386899,0.0001779,96754.0,96753.0,0.13397486]
[1733157387342,0.0001779,96754.0,96753.0,0.13097486]
[1733157387991,0.0011779,96754.0,96753.0,0.15525657]
[1733157388199,0.10302311,96754.0,96753.0,0.01257486]
[1733157388419,0.10630994,96754.0,96753.0,0.01957486]
[1733157388635,0.0011779,96754.0,96753.0,0.01557486]
[1733157389045,0.0011779,96754.0,96753.0,0.01957486]
[1733157389467,0.0011779,96754.0,96753.0,0.01557486]
[1733157389668,0.0001779,96754.0,96753.0,0.00857486]
[1733157389872,0.0001779,96754.0,96753.0,0.01257486]
[1733157390082,0.0011779,96754.0,96753.0,0.01957486]
[1733157390345,0.0001779,96754.0,96753.0,0.01257486]
[1733157390549,0.0001779,96754.0,96753.0,0.01957486]
[1733157390753,0.0011779,96754.0,96753.0,0.01957486]
[1733157393833,0.2078869,96754.0,96753.0,0.01957486]
[1733157394066,0.31073211,96754.0,96753.0,0.01957486]
[1733157394362,0.31073211,96754.0,96753.0,0.011]
[1733157394795,0.46073211,96754.0,96753.0,0.011]
[1733157395037,0.47029429,96754.0,96753.0,0.011]
[1733157395224,0.32029429,96754.0,96753.0,0.01557486]
[1733157395470,0.0011779,96754.0,96753.0,0.01557486]
[1733157395897,0.0021779,96754.0,96753.0,0.01557486]
[1733157396099,0.0011779,96754.0,96753.0,0.00857486]
[1733157396319,0.0061779,96754.0,96753.0,0.00957486]
[1733157396524,0.0001779,96754.0,96753.0,0.00857486]
[1733157396940,0.0001779,96754.0,96753.0,0.01257486]
[1733157397375,0.10531004,96754.0,96753.0,0.01257486]
[1733157397584,0.10531004,96754.0,96753.0,0.01557486]
[1733157397790,0.10531004,96754.0,96753.0,0.007]
[1733157398141,0.10531004,96754.0,96753.0,1.004]
[1733157398335,0.10302311,96754.0,96753.0,1.004]
[1733157398582,0.10502311,96754.0,96753.0,1.004]
[1733157399106,0.10302311,96754.0,96753.0,1.0]
[1733157399313,0.10702311,96754.0,96753.0,1.0]
[1733157399516,0.10531001,96754.0,96753.0,1.0]
[1733157399649,0.11488092,96754.0,96753.0,0.99959348]
[1733157399873,0.11888092,96754.0,96753.0,0.99959348]
[1733157400082,0.28788092,96754.0,96753.0,0.89277302]
[1733157400278,0.51110177,96754.0,96753.0,0.89277302]
[1733157400504,0.53269278,96754.0,96753.0,0.89277302]
[1733157400732,0.53069278,96754.0,96753.0,0.81008902]
[1733157400936,0.53069278,96754.0,96753.0,0.79041802]
[1733157401128,0.53669278,96754.0,96753.0,0.79041802]
[1733157401284,2.78153803,96754.0,96753.0,0.79041802]
[1733157401648,2.78153803,96754.0,96753.0,0.62097602]
[1733157401649,0.55112203,96754.0,96753.0,0.62097602]
[1733157401867,0.55112203,96754.0,96753.0,0.55896302]
[1733157402281,0.29549689,96754.0,96753.0,0.55796302]
[1733157402508,0.29549689,96754.0,96753.0,0.55896302]
[1733157402722,0.28390588,96754.0,96753.0,0.55896302]
[1733157402916,0.27790041,96754.0,96753.0,0.55796302]
[1733157403199,0.26259402,96754.0,96753.0,0.55796302]
[1733157403428,0.27332504,96754.0,96753.0,0.55896302]
[1733157403652,0.28032504,96754.0,96753.0,0.55996302]
[1733157404124,0.29563732,96754.0,96753.0,0.55996302]
[1733157404333,0.13032504,96754.0,96753.0,0.55996302]
[1733157404540,0.13261205,96754.0,96753.0,0.55996302]
[1733157405396,0.12075791,96754.0,96753.0,0.56853788]
[1733157405667,0.12075791,96754.0,96753.0,0.64743788]
[1733157405876,0.12304473,96754.0,96753.0,0.64743788]
[1733157406063,0.12304473,96754.0,96753.0,0.45660802]
[1733157406305,0.31446987,96754.0,96753.0,0.45660802]
[1733157406572,0.88402741,96754.0,96753.0,0.45560802]
[1733157406741,1.04934479,96754.0,96753.0,0.25715302]
[1733157406943,0.70207379,96754.0,96753.0,0.25715302]
[1733157407153,0.88989451,96754.0,96753.0,0.25615302]
[1733157407361,2.21012451,96754.0,96753.0,0.25615302]
[1733157407580,1.91577713,96754.0,96753.0,0.25615302]
[1733157407822,2.02493856,96754.0,96753.0,0.15279802]
[1733157408007,0.72014784,96754.0,96753.0,0.15279802]
[1733157408215,0.72014784,96754.0,96753.0,0.12951575]
[1733157408438,0.3357227,96754.0,96753.0,0.13051575]
[1733157408648,0.3357227,96754.0,96753.0,0.13698931]
[1733157408821,0.51340532,96754.0,96753.0,0.13598931]
[1733157409025,0.50440532,96754.0,96753.0,0.03263431]
[1733157409240,0.52140532,96754.0,96753.0,0.03463431]
[1733157409720,0.19142514,96743.0,96737.0,8.1e-07]
[1733157409937,0.25284521,96738.0,96737.0,8.1e-07]
[1733157410140,0.26241857,96738.0,96737.0,8.1e-07]
[1733157410477,0.28541857,96738.0,96737.0,8.1e-07]
[1733157410681,0.48541857,96738.0,96737.0,8.1e-07]
[1733157411337,0.47584521,96738.0,96737.0,8.1e-07]
[1733157411520,0.28541489,96738.0,96737.0,8.1e-07]
[1733157411730,0.48541489,96738.0,96737.0,8.1e-07]
[1733157412176,0.51059711,96738.0,96737.0,0.00100081]
[1733157412384,0.51059711,96738.0,96737.0,1e-06]
[1733157412587,0.59624635,96738.0,96737.0,1e-06]
[1733157412807,0.60324635,96738.0,96737.0,1e-06]
[1733157413039,0.59624635,96738.0,96737.0,1e-06]
[1733157413350,1.28952249,96738.0,96737.0,1e-06]
[1733157415873,1.28952249,96738.0,96737.0,3e-07]
[1733157416116,0.79667149,96738.0,96737.0,3e-07]
[1733157416533,0.78767149,96738.0,96737.0,3e-07]
[1733157416748,0.77967149,96738.0,96737.0,3e-07]
[1733157416957,1.33257149,96738.0,96737.0,3e-07]
[1733157417246,1.34157149,96738.0,96737.0,3e-07]
[1733157417779,1.35912979,96738.0,96737.0,3e-07]
[1733157418712,0.35685,96688.0,96687.0,0.0815]
[1733157418961,0.45969521,96688.0,96687.0,0.0815]
[1733157420071,0.46069521,96688.0,96687.0,0.08209045]
[1733157420292,0.46169521,96688.0,96687.0,0.08209045]
[1733157421609,0.31169521,96688.0,96687.0,0.09066531]
[1733157422035,0.31169521,96688.0,96687.0,0.08209045]
[1733157422486,0.10484521,96688.0,96656.0,0.0008655]
[1733157422770,0.206902,96664.0,96662.0,0.00857486]
[1733157422957,0.4620363,96664.0,96656.0,0.0008655]
[1733157423170,0.45974721,96664.0,96656.0,0.0008655]
[1733157423561,0.46929198,96664.0,96656.0,0.0008655]
[1733157423822,0.45974721,96664.0,96656.0,0.0008655]
[1733157424251,0.50064363,96664.0,96663.0,0.67105306]
[1733157424450,0.63952963,96664.0,96663.0,0.65036306]
[1733157424669,0.64845088,96664.0,96663.0,0.65036306]
[1733157424882,0.66728847,96664.0,96663.0,0.65036306]
[1733157425343,0.66728847,96664.0,96663.0,0.58829306]
[1733157425550,0.66728847,96664.0,96663.0,0.54691306]
[1733157425551,0.64945088,96664.0,96663.0,0.54691306]
[1733157425762,0.75203116,96664.0,96663.0,0.54691306]
[1733157425982,0.9003563,96664.0,96663.0,0.44346306]
[1733157426216,1.1043563,96664.0,96663.0,0.44346306]
[1733157426432,1.1033563,96664.0,96663.0,0.43370561]
[1733157426660,1.1441563,96664.0,96663.0,0.43370561]
[1733157426870,1.1451563,96664.0,96663.0,0.37163561]
[1733157427085,1.6689563,96664.0,96663.0,0.28945561]
[1733157427298,2.05145302,96664.0,96663.0,0.01441165]
[1733157427507,0.56442514,96646.0,96640.0,0.0008655]
[1733157427719,0.56442514,96641.0,96640.0,7e-07]
[1733157427942,0.67681428,96641.0,96640.0,7e-07]
[1733157428160,0.59838914,96635.0,96634.0,8e-07]
[1733157428372,0.68377828,96635.0,96634.0,8e-07]
[1733157428585,1.02554122,96635.0,96634.0,8e-07]
[1733157428835,0.89711707,96635.0,96634.0,8e-07]
[1733157429049,0.90295565,96635.0,96634.0,8e-07]
[1733157429275,0.91550767,96635.0,96634.0,8e-07]
[1733157429498,0.88816498,96635.0,96634.0,8e-07]
[1733157429713,0.46040105,96635.0,96634.0,8e-07]
[1733157429923,0.48340105,96635.0,96634.0,8e-07]
[1733157430133,0.78959959,96635.0,96634.0,8e-07]
[1733157430569,0.81193838,96635.0,96634.0,8e-07]
[1733157430771,0.82143966,96635.0,96634.0,8e-07]
[1733157430978,0.79409697,96635.0,96634.0,8e-07]
[1733157431215,0.51090233,96635.0,96634.0,8e-07]
[1733157431426,0.50140105,96635.0,96634.0,8e-07]
[1733157431636,0.49240105,96635.0,96634.0,8e-07]
[1733157431860,0.46940105,96635.0,96634.0,8e-07]
[1733157432062,0.47840105,96635.0,96634.0,8e-07]
[1733157432276,0.6085752,96635.0,96634.0,8e-07]
[1733157432898,0.58123251,96635.0,96634.0,8e-07]
[1733157433114,0.6085752,96635.0,96634.0,8e-07]
[1733157433319,0.60423251,96635.0,96634.0,8e-07]
[1733157433589,0.52887275,96635.0,96634.0,8e-07]
[1733157433794,0.51987275,96635.0,96634.0,8e-07]
[1733157434035,0.49240105,96635.0,96634.0,8e-07]
[1733157434269,0.50140105,96635.0,96634.0,8e-07]
[1733157434510,0.63170421,96635.0,96634.0,8e-07]
[1733157434746,0.58623251,96635.0,96634.0,8e-07]
[1733157434962,0.59523251,96635.0,96634.0,8e-07]
[1733157435232,0.58623251,96635.0,96634.0,8e-07]
[1733157435460,1.00512935,96635.0,96634.0,8e-07]
[1733157435686,1.03578652,96635.0,96634.0,8e-07]
[1733157435916,0.82270421,96635.0,96634.0,8e-07]
[1733157436158,0.207009,96614.0,96611.0,0.00601366]
[1733157436454,0.357009,96614.0,96613.0,0.00601366]
[1733157436690,0.30985421,96614.0,96613.0,0.12831366]
[1733157437236,0.45985421,96614.0,96613.0,0.12831366]
[1733157437727,0.31485421,96614.0,96613.0,0.12568916]
[1733157437935,0.31485421,96614.0,96613.0,0.13852053]
[1733157438491,0.31485421,96614.0,96613.0,0.1223]
[1733157438492,0.47385421,96614.0,96613.0,0.1223]
[1733157438758,0.46485421,96614.0,96613.0,0.1223]
[1733157439028,0.46385421,96614.0,96613.0,0.1223]
[1733157439289,0.46485421,96614.0,96613.0,0.1223]
[1733157439563,0.46485421,96614.0,96613.0,0.1231659]
[1733157439793,0.45985421,96614.0,96613.0,0.1231659]
[1733157440397,0.56923993,96614.0,96613.0,0.0008659]
[1733157440552,0.59883026,96614.0,96613.0,9e-07]
[1733157440819,0.9954411,96614.0,96613.0,9e-07]
[1733157441041,1.00494728,96614.0,96613.0,9e-07]
[1733157441280,1.11364728,96614.0,96613.0,9e-07]
[1733157441552,0.380058,96591.0,96590.0,4e-07]
[1733157441816,0.52090901,96591.0,96590.0,4e-07]
[1733157442313,0.74906799,96591.0,96590.0,4e-07]
[1733157442558,0.56845069,96591.0,96590.0,4e-07]
[1733157442769,0.54377274,96591.0,96590.0,4e-07]
[1733157442977,0.51222408,96591.0,96590.0,4e-07]
[1733157443189,0.45321828,96591.0,96590.0,4e-07]
[1733157443432,0.44371382,96591.0,96590.0,4e-07]
[1733157444076,0.29371382,96591.0,96590.0,0.00338956]
[1733157444321,0.29371382,96591.0,96590.0,0.05148956]
[1733157444790,0.29371382,96591.0,96590.0,0.13468956]
[1733157445466,0.10543669,96591.0,96590.0,0.14815852]
[1733157445688,0.10543669,96591.0,96590.0,0.13468956]
[1733157450229,0.10543669,96591.0,96590.0,0.13917308]
[1733157451390,0.00259148,96591.0,96590.0,0.13917308]
[1733157451636,0.208742,96614.0,96613.0,0.12878916]
[1733157451909,0.31158721,96614.0,96613.0,0.12878916]
[1733157452180,0.31158721,96614.0,96613.0,0.1254]
[1733157452415,0.32115648,96614.0,96613.0,0.0475]
[1733157453150,0.32515648,96614.0,96613.0,0.05088916]
[1733157453642,0.31158721,96614.0,96613.0,0.05088916]
[1733157454100,0.47116096,96614.0,96613.0,0.05088916]
[1733157454326,0.48216096,96614.0,96613.0,0.05088916]
[1733157454823,0.26815196,96614.0,96613.0,0.05088916]
[1733157455060,0.413968,96626.0,96625.0,0.00338916]
[1733157455297,0.30982921,96626.0,96625.0,0.04868916]
[1733157456049,0.206992,96622.0,96616.0,0.00338916]
[1733157456281,0.206986,96625.0,96621.0,0.00338916]
[1733157456531,0.25284521,96622.0,96621.0,0.00338916]
[1733157456789,0.356994,96621.0,96616.0,0.00348727]
[1733157457042,0.25284521,96617.0,96616.0,9.811e-05]
[1733157457277,0.26242607,96617.0,96616.0,9.811e-05]
[1733157458416,0.26242607,96617.0,96616.0,0.00109811]
[1733157459313,0.26242607,96617.0,96616.0,0.00209811]